{"text_format":"3","workbook":"xlsx","n_sheets":5,"sheets":["Raport vânzări produse","Date istorice","Listă de prețuri","Punct pivot preț","Tendință pivot prețuri"],"not_rendered":{"charts":2,"defined_names":6,"pivot_tables":2},"read":"whole","date_system":"1900"}

{"sheet":"Raport vânzări produse","index":0,"n_rows":20,"n_cols":2,"rows_kept":20}
[null,"Raport vânzări produse"]
{"$rows_empty":18}
[null," Produse"]

{"sheet":"Date istorice","index":1,"n_rows":33,"n_cols":10,"rows_kept":33}
[null,"Lista istorică de prețuri a produselor și vânzări"]
[]
[null,"ID produs","Nume produs","Dată preț","Preț de comercializare cu amănuntul pe unitate","Preț en gross pe unitate*","Unități vândute (vânzare cu amănuntul)","Unități vândute (en gross)","Total vânzări (#)","Total vânzări (lei)"]
[null,5,{"$f":"IFERROR(IF(tblVânzări[[#This Row],[ID produs]]<>\"\",VLOOKUP(tblVânzări[ID produs],tblProduse[[ID produs]:[Nume]],2,FALSE),\"\"),\"ID produs necunoscut\")","v":"Pantaloni scurți"},"2012-01-01",20,{"v":20,"d":"20 lei"},629,{"v":1254,"d":"1,254"},{"$f":"tblVânzări[[#This Row],[Unități vândute (en gross)]]+tblVânzări[[#This Row],[Unități vândute (vânzare cu amănuntul)]]","v":{"v":1883,"d":"1,883"}},{"$f":"tblVânzări[[#This Row],[Unități vândute (vânzare cu amănuntul)]]*tblVânzări[[#This Row],[Preț de comercializare cu amănuntul pe unitate]]+tblVânzări[[#This Row],[Unități vândute (en gross)]]*tblVânzări[[#This Row],[Preț en gross pe unitate*]]","v":{"v":37660,"d":"37,660 lei"}}]
[null,1,{"$f":"IFERROR(IF(tblVânzări[[#This Row],[ID produs]]<>\"\",VLOOKUP(tblVânzări[ID produs],tblProduse[[ID produs]:[Nume]],2,FALSE),\"\"),\"ID produs necunoscut\")","v":"Bluze"},"2012-01-01",88,{"v":54,"d":"54 lei"},734,{"v":1427,"d":"1,427"},{"$f":"tblVânzări[[#This Row],[Unități vândute (en gross)]]+tblVânzări[[#This Row],[Unități vândute (vânzare cu amănuntul)]]","v":{"v":2161,"d":"2,161"}},{"$f":"tblVânzări[[#This Row],[Unități vândute (vânzare cu amănuntul)]]*tblVânzări[[#This Row],[Preț de comercializare cu amănuntul pe unitate]]+tblVânzări[[#This Row],[Unități vândute (en gross)]]*tblVânzări[[#This Row],[Preț en gross pe unitate*]]","v":{"v":141650,"d":"141,650 lei"}}]
[null,2,{"$f":"IFERROR(IF(tblVânzări[[#This Row],[ID produs]]<>\"\",VLOOKUP(tblVânzări[ID produs],tblProduse[[ID produs]:[Nume]],2,FALSE),\"\"),\"ID produs necunoscut\")","v":"Sandale"},"2012-01-01",70,{"v":44,"d":"44 lei"},744,{"v":1043,"d":"1,043"},{"$f":"tblVânzări[[#This Row],[Unități vândute (en gross)]]+tblVânzări[[#This Row],[Unități vândute (vânzare cu amănuntul)]]","v":{"v":1787,"d":"1,787"}},{"$f":"tblVânzări[[#This Row],[Unități vândute (vânzare cu amănuntul)]]*tblVânzări[[#This Row],[Preț de comercializare cu amănuntul pe unitate]]+tblVânzări[[#This Row],[Unități vândute (en gross)]]*tblVânzări[[#This Row],[Preț en gross pe unitate*]]","v":{"v":97972,"d":"97,972 lei"}}]
[null,3,{"$f":"IFERROR(IF(tblVânzări[[#This Row],[ID produs]]<>\"\",VLOOKUP(tblVânzări[ID produs],tblProduse[[ID produs]:[Nume]],2,FALSE),\"\"),\"ID produs necunoscut\")","v":"Umbrele"},"2012-01-01",63,{"v":44,"d":"44 lei"},681,{"v":1523,"d":"1,523"},{"$f":"tblVânzări[[#This Row],[Unități vândute (en gross)]]+tblVânzări[[#This Row],[Unități vândute (vânzare cu amănuntul)]]","v":{"v":2204,"d":"2,204"}},{"$f":"tblVânzări[[#This Row],[Unități vândute (vânzare cu amănuntul)]]*tblVânzări[[#This Row],[Preț de comercializare cu amănuntul pe unitate]]+tblVânzări[[#This Row],[Unități vândute (en gross)]]*tblVânzări[[#This Row],[Preț en gross pe unitate*]]","v":{"v":109915,"d":"109,915 lei"}}]
[null,4,{"$f":"IFERROR(IF(tblVânzări[[#This Row],[ID produs]]<>\"\",VLOOKUP(tblVânzări[ID produs],tblProduse[[ID produs]:[Nume]],2,FALSE),\"\"),\"ID produs necunoscut\")","v":"Sticle de apă"},"2012-01-01",35,{"v":27,"d":"27 lei"},602,{"v":1822,"d":"1,822"},{"$f":"tblVânzări[[#This Row],[Unități vândute (en gross)]]+tblVânzări[[#This Row],[Unități vândute (vânzare cu amănuntul)]]","v":{"v":2424,"d":"2,424"}},{"$f":"tblVânzări[[#This Row],[Unități vândute (vânzare cu amănuntul)]]*tblVânzări[[#This Row],[Preț de comercializare cu amănuntul pe unitate]]+tblVânzări[[#This Row],[Unități vândute (en gross)]]*tblVânzări[[#This Row],[Preț en gross pe unitate*]]","v":{"v":70264,"d":"70,264 lei"}}]
[null,1,{"$f":"IFERROR(IF(tblVânzări[[#This Row],[ID produs]]<>\"\",VLOOKUP(tblVânzări[ID produs],tblProduse[[ID produs]:[Nume]],2,FALSE),\"\"),\"ID produs necunoscut\")","v":"Bluze"},"2012-02-01",55,{"v":44,"d":"44 lei"},678,{"v":1515,"d":"1,515"},{"$f":"tblVânzări[[#This Row],[Unități vândute (en gross)]]+tblVânzări[[#This Row],[Unități vândute (vânzare cu amănuntul)]]","v":{"v":2193,"d":"2,193"}},{"$f":"tblVânzări[[#This Row],[Unități vândute (vânzare cu amănuntul)]]*tblVânzări[[#This Row],[Preț de comercializare cu amănuntul pe unitate]]+tblVânzări[[#This Row],[Unități vândute (en gross)]]*tblVânzări[[#This Row],[Preț en gross pe unitate*]]","v":{"v":103950,"d":"103,950 lei"}}]
[null,2,{"$f":"IFERROR(IF(tblVânzări[[#This Row],[ID produs]]<>\"\",VLOOKUP(tblVânzări[ID produs],tblProduse[[ID produs]:[Nume]],2,FALSE),\"\"),\"ID produs necunoscut\")","v":"Sandale"},"2012-02-01",83,{"v":54,"d":"54 lei"},753,{"v":1005,"d":"1,005"},{"$f":"tblVânzări[[#This Row],[Unități vândute (en gross)]]+tblVânzări[[#This Row],[Unități vândute (vânzare cu amănuntul)]]","v":{"v":1758,"d":"1,758"}},{"$f":"tblVânzări[[#This Row],[Unități vândute (vânzare cu amănuntul)]]*tblVânzări[[#This Row],[Preț de comercializare cu amănuntul pe unitate]]+tblVânzări[[#This Row],[Unități vândute (en gross)]]*tblVânzări[[#This Row],[Preț en gross pe unitate*]]","v":{"v":116769,"d":"116,769 lei"}}]
[null,3,{"$f":"IFERROR(IF(tblVânzări[[#This Row],[ID produs]]<>\"\",VLOOKUP(tblVânzări[ID produs],tblProduse[[ID produs]:[Nume]],2,FALSE),\"\"),\"ID produs necunoscut\")","v":"Umbrele"},"2012-02-01",34,{"v":34,"d":"34 lei"},986,{"v":1069,"d":"1,069"},{"$f":"tblVânzări[[#This Row],[Unități vândute (en gross)]]+tblVânzări[[#This Row],[Unități vândute (vânzare cu amănuntul)]]","v":{"v":2055,"d":"2,055"}},{"$f":"tblVânzări[[#This Row],[Unități vândute (vânzare cu amănuntul)]]*tblVânzări[[#This Row],[Preț de comercializare cu amănuntul pe unitate]]+tblVânzări[[#This Row],[Unități vândute (en gross)]]*tblVânzări[[#This Row],[Preț en gross pe unitate*]]","v":{"v":69870,"d":"69,870 lei"}}]
[null,4,{"$f":"IFERROR(IF(tblVânzări[[#This Row],[ID produs]]<>\"\",VLOOKUP(tblVânzări[ID produs],tblProduse[[ID produs]:[Nume]],2,FALSE),\"\"),\"ID produs necunoscut\")","v":"Sticle de apă"},"2012-02-01",35,{"v":25,"d":"25 lei"},848,{"v":1211,"d":"1,211"},{"$f":"tblVânzări[[#This Row],[Unități vândute (en gross)]]+tblVânzări[[#This Row],[Unități vândute (vânzare cu amănuntul)]]","v":{"v":2059,"d":"2,059"}},{"$f":"tblVânzări[[#This Row],[Unități vândute (vânzare cu amănuntul)]]*tblVânzări[[#This Row],[Preț de comercializare cu amănuntul pe unitate]]+tblVânzări[[#This Row],[Unități vândute (en gross)]]*tblVânzări[[#This Row],[Preț en gross pe unitate*]]","v":{"v":59955,"d":"59,955 lei"}}]
[null,5,{"$f":"IFERROR(IF(tblVânzări[[#This Row],[ID produs]]<>\"\",VLOOKUP(tblVânzări[ID produs],tblProduse[[ID produs]:[Nume]],2,FALSE),\"\"),\"ID produs necunoscut\")","v":"Pantaloni scurți"},"2012-02-01",41,{"v":38,"d":"38 lei"},980,{"v":1330,"d":"1,330"},{"$f":"tblVânzări[[#This Row],[Unități vândute (en gross)]]+tblVânzări[[#This Row],[Unități vândute (vânzare cu amănuntul)]]","v":{"v":2310,"d":"2,310"}},{"$f":"tblVânzări[[#This Row],[Unități vândute (vânzare cu amănuntul)]]*tblVânzări[[#This Row],[Preț de comercializare cu amănuntul pe unitate]]+tblVânzări[[#This Row],[Unități vândute (en gross)]]*tblVânzări[[#This Row],[Preț en gross pe unitate*]]","v":{"v":90720,"d":"90,720 lei"}}]
[null,1,{"$f":"IFERROR(IF(tblVânzări[[#This Row],[ID produs]]<>\"\",VLOOKUP(tblVânzări[ID produs],tblProduse[[ID produs]:[Nume]],2,FALSE),\"\"),\"ID produs necunoscut\")","v":"Bluze"},"2012-02-29",27,{"v":18,"d":"18 lei"},533,{"v":1936,"d":"1,936"},{"$f":"tblVânzări[[#This Row],[Unități vândute (en gross)]]+tblVânzări[[#This Row],[Unități vândute (vânzare cu amănuntul)]]","v":{"v":2469,"d":"2,469"}},{"$f":"tblVânzări[[#This Row],[Unități vândute (vânzare cu amănuntul)]]*tblVânzări[[#This Row],[Preț de comercializare cu amănuntul pe unitate]]+tblVânzări[[#This Row],[Unități vândute (en gross)]]*tblVânzări[[#This Row],[Preț en gross pe unitate*]]","v":{"v":49239,"d":"49,239 lei"}}]
[null,2,{"$f":"IFERROR(IF(tblVânzări[[#This Row],[ID produs]]<>\"\",VLOOKUP(tblVânzări[ID produs],tblProduse[[ID produs]:[Nume]],2,FALSE),\"\"),\"ID produs necunoscut\")","v":"Sandale"},"2012-02-29",38,{"v":28,"d":"28 lei"},952,{"v":1512,"d":"1,512"},{"$f":"tblVânzări[[#This Row],[Unități vândute (en gross)]]+tblVânzări[[#This Row],[Unități vândute (vânzare cu amănuntul)]]","v":{"v":2464,"d":"2,464"}},{"$f":"tblVânzări[[#This Row],[Unități vândute (vânzare cu amănuntul)]]*tblVânzări[[#This Row],[Preț de comercializare cu amănuntul pe unitate]]+tblVânzări[[#This Row],[Unități vândute (en gross)]]*tblVânzări[[#This Row],[Preț en gross pe unitate*]]","v":{"v":78512,"d":"78,512 lei"}}]
[null,3,{"$f":"IFERROR(IF(tblVânzări[[#This Row],[ID produs]]<>\"\",VLOOKUP(tblVânzări[ID produs],tblProduse[[ID produs]:[Nume]],2,FALSE),\"\"),\"ID produs necunoscut\")","v":"Umbrele"},"2012-02-29",92,{"v":92,"d":"92 lei"},956,{"v":1266,"d":"1,266"},{"$f":"tblVânzări[[#This Row],[Unități vândute (en gross)]]+tblVânzări[[#This Row],[Unități vândute (vânzare cu amănuntul)]]","v":{"v":2222,"d":"2,222"}},{"$f":"tblVânzări[[#This Row],[Unități vândute (vânzare cu amănuntul)]]*tblVânzări[[#This Row],[Preț de comercializare cu amănuntul pe unitate]]+tblVânzări[[#This Row],[Unități vândute (en gross)]]*tblVânzări[[#This Row],[Preț en gross pe unitate*]]","v":{"v":204424,"d":"204,424 lei"}}]
[null,4,{"$f":"IFERROR(IF(tblVânzări[[#This Row],[ID produs]]<>\"\",VLOOKUP(tblVânzări[ID produs],tblProduse[[ID produs]:[Nume]],2,FALSE),\"\"),\"ID produs necunoscut\")","v":"Sticle de apă"},"2012-02-29",43,{"v":36,"d":"36 lei"},952,{"v":1390,"d":"1,390"},{"$f":"tblVânzări[[#This Row],[Unități vândute (en gross)]]+tblVânzări[[#This Row],[Unități vândute (vânzare cu amănuntul)]]","v":{"v":2342,"d":"2,342"}},{"$f":"tblVânzări[[#This Row],[Unități vândute (vânzare cu amănuntul)]]*tblVânzări[[#This Row],[Preț de comercializare cu amănuntul pe unitate]]+tblVânzări[[#This Row],[Unități vândute (en gross)]]*tblVânzări[[#This Row],[Preț en gross pe unitate*]]","v":{"v":90976,"d":"90,976 lei"}}]
[null,5,{"$f":"IFERROR(IF(tblVânzări[[#This Row],[ID produs]]<>\"\",VLOOKUP(tblVânzări[ID produs],tblProduse[[ID produs]:[Nume]],2,FALSE),\"\"),\"ID produs necunoscut\")","v":"Pantaloni scurți"},"2012-02-29",98,{"v":73,"d":"73 lei"},530,{"v":1452,"d":"1,452"},{"$f":"tblVânzări[[#This Row],[Unități vândute (en gross)]]+tblVânzări[[#This Row],[Unități vândute (vânzare cu amănuntul)]]","v":{"v":1982,"d":"1,982"}},{"$f":"tblVânzări[[#This Row],[Unități vândute (vânzare cu amănuntul)]]*tblVânzări[[#This Row],[Preț de comercializare cu amănuntul pe unitate]]+tblVânzări[[#This Row],[Unități vândute (en gross)]]*tblVânzări[[#This Row],[Preț en gross pe unitate*]]","v":{"v":157936,"d":"157,936 lei"}}]
[null,1,{"$f":"IFERROR(IF(tblVânzări[[#This Row],[ID produs]]<>\"\",VLOOKUP(tblVânzări[ID produs],tblProduse[[ID produs]:[Nume]],2,FALSE),\"\"),\"ID produs necunoscut\")","v":"Bluze"},"2012-03-31",38,{"v":28,"d":"28 lei"},973,{"v":1415,"d":"1,415"},{"$f":"tblVânzări[[#This Row],[Unități vândute (en gross)]]+tblVânzări[[#This Row],[Unități vândute (vânzare cu amănuntul)]]","v":{"v":2388,"d":"2,388"}},{"$f":"tblVânzări[[#This Row],[Unități vândute (vânzare cu amănuntul)]]*tblVânzări[[#This Row],[Preț de comercializare cu amănuntul pe unitate]]+tblVânzări[[#This Row],[Unități vândute (en gross)]]*tblVânzări[[#This Row],[Preț en gross pe unitate*]]","v":{"v":76594,"d":"76,594 lei"}}]
[null,2,{"$f":"IFERROR(IF(tblVânzări[[#This Row],[ID produs]]<>\"\",VLOOKUP(tblVânzări[ID produs],tblProduse[[ID produs]:[Nume]],2,FALSE),\"\"),\"ID produs necunoscut\")","v":"Sandale"},"2012-03-31",50,{"v":36,"d":"36 lei"},672,{"v":1105,"d":"1,105"},{"$f":"tblVânzări[[#This Row],[Unități vândute (en gross)]]+tblVânzări[[#This Row],[Unități vândute (vânzare cu amănuntul)]]","v":{"v":1777,"d":"1,777"}},{"$f":"tblVânzări[[#This Row],[Unități vândute (vânzare cu amănuntul)]]*tblVânzări[[#This Row],[Preț de comercializare cu amănuntul pe unitate]]+tblVânzări[[#This Row],[Unități vândute (en gross)]]*tblVânzări[[#This Row],[Preț en gross pe unitate*]]","v":{"v":73380,"d":"73,380 lei"}}]
[null,3,{"$f":"IFERROR(IF(tblVânzări[[#This Row],[ID produs]]<>\"\",VLOOKUP(tblVânzări[ID produs],tblProduse[[ID produs]:[Nume]],2,FALSE),\"\"),\"ID produs necunoscut\")","v":"Umbrele"},"2012-03-31",24,{"v":23,"d":"23 lei"},769,{"v":1629,"d":"1,629"},{"$f":"tblVânzări[[#This Row],[Unități vândute (en gross)]]+tblVânzări[[#This Row],[Unități vândute (vânzare cu amănuntul)]]","v":{"v":2398,"d":"2,398"}},{"$f":"tblVânzări[[#This Row],[Unități vândute (vânzare cu amănuntul)]]*tblVânzări[[#This Row],[Preț de comercializare cu amănuntul pe unitate]]+tblVânzări[[#This Row],[Unități vândute (en gross)]]*tblVânzări[[#This Row],[Preț en gross pe unitate*]]","v":{"v":55923,"d":"55,923 lei"}}]
[null,4,{"$f":"IFERROR(IF(tblVânzări[[#This Row],[ID produs]]<>\"\",VLOOKUP(tblVânzări[ID produs],tblProduse[[ID produs]:[Nume]],2,FALSE),\"\"),\"ID produs necunoscut\")","v":"Sticle de apă"},"2012-03-31",72,{"v":57,"d":"57 lei"},985,{"v":1848,"d":"1,848"},{"$f":"tblVânzări[[#This Row],[Unități vândute (en gross)]]+tblVânzări[[#This Row],[Unități vândute (vânzare cu amănuntul)]]","v":{"v":2833,"d":"2,833"}},{"$f":"tblVânzări[[#This Row],[Unități vândute (vânzare cu amănuntul)]]*tblVânzări[[#This Row],[Preț de comercializare cu amănuntul pe unitate]]+tblVânzări[[#This Row],[Unități vândute (en gross)]]*tblVânzări[[#This Row],[Preț en gross pe unitate*]]","v":{"v":176256,"d":"176,256 lei"}}]
[null,5,{"$f":"IFERROR(IF(tblVânzări[[#This Row],[ID produs]]<>\"\",VLOOKUP(tblVânzări[ID produs],tblProduse[[ID produs]:[Nume]],2,FALSE),\"\"),\"ID produs necunoscut\")","v":"Pantaloni scurți"},"2012-03-31",85,{"v":43,"d":"43 lei"},721,{"v":1426,"d":"1,426"},{"$f":"tblVânzări[[#This Row],[Unități vândute (en gross)]]+tblVânzări[[#This Row],[Unități vândute (vânzare cu amănuntul)]]","v":{"v":2147,"d":"2,147"}},{"$f":"tblVânzări[[#This Row],[Unități vândute (vânzare cu amănuntul)]]*tblVânzări[[#This Row],[Preț de comercializare cu amănuntul pe unitate]]+tblVânzări[[#This Row],[Unități vândute (en gross)]]*tblVânzări[[#This Row],[Preț en gross pe unitate*]]","v":{"v":122603,"d":"122,603 lei"}}]
[null,1,{"$f":"IFERROR(IF(tblVânzări[[#This Row],[ID produs]]<>\"\",VLOOKUP(tblVânzări[ID produs],tblProduse[[ID produs]:[Nume]],2,FALSE),\"\"),\"ID produs necunoscut\")","v":"Bluze"},"2012-04-30",91,{"v":65,"d":"65 lei"},603,{"v":1226,"d":"1,226"},{"$f":"tblVânzări[[#This Row],[Unități vândute (en gross)]]+tblVânzări[[#This Row],[Unități vândute (vânzare cu amănuntul)]]","v":{"v":1829,"d":"1,829"}},{"$f":"tblVânzări[[#This Row],[Unități vândute (vânzare cu amănuntul)]]*tblVânzări[[#This Row],[Preț de comercializare cu amănuntul pe unitate]]+tblVânzări[[#This Row],[Unități vândute (en gross)]]*tblVânzări[[#This Row],[Preț en gross pe unitate*]]","v":{"v":134563,"d":"134,563 lei"}}]
[null,2,{"$f":"IFERROR(IF(tblVânzări[[#This Row],[ID produs]]<>\"\",VLOOKUP(tblVânzări[ID produs],tblProduse[[ID produs]:[Nume]],2,FALSE),\"\"),\"ID produs necunoscut\")","v":"Sandale"},"2012-04-30",91,{"v":55,"d":"55 lei"},892,{"v":1823,"d":"1,823"},{"$f":"tblVânzări[[#This Row],[Unități vândute (en gross)]]+tblVânzări[[#This Row],[Unități vândute (vânzare cu amănuntul)]]","v":{"v":2715,"d":"2,715"}},{"$f":"tblVânzări[[#This Row],[Unități vândute (vânzare cu amănuntul)]]*tblVânzări[[#This Row],[Preț de comercializare cu amănuntul pe unitate]]+tblVânzări[[#This Row],[Unități vândute (en gross)]]*tblVânzări[[#This Row],[Preț en gross pe unitate*]]","v":{"v":181437,"d":"181,437 lei"}}]
[null,3,{"$f":"IFERROR(IF(tblVânzări[[#This Row],[ID produs]]<>\"\",VLOOKUP(tblVânzări[ID produs],tblProduse[[ID produs]:[Nume]],2,FALSE),\"\"),\"ID produs necunoscut\")","v":"Umbrele"},"2012-04-30",42,{"v":42,"d":"42 lei"},611,{"v":1181,"d":"1,181"},{"$f":"tblVânzări[[#This Row],[Unități vândute (en gross)]]+tblVânzări[[#This Row],[Unități vândute (vânzare cu amănuntul)]]","v":{"v":1792,"d":"1,792"}},{"$f":"tblVânzări[[#This Row],[Unități vândute (vânzare cu amănuntul)]]*tblVânzări[[#This Row],[Preț de comercializare cu amănuntul pe unitate]]+tblVânzări[[#This Row],[Unități vândute (en gross)]]*tblVânzări[[#This Row],[Preț en gross pe unitate*]]","v":{"v":75264,"d":"75,264 lei"}}]
[null,4,{"$f":"IFERROR(IF(tblVânzări[[#This Row],[ID produs]]<>\"\",VLOOKUP(tblVânzări[ID produs],tblProduse[[ID produs]:[Nume]],2,FALSE),\"\"),\"ID produs necunoscut\")","v":"Sticle de apă"},"2012-04-30",85,{"v":43,"d":"43 lei"},530,{"v":1039,"d":"1,039"},{"$f":"tblVânzări[[#This Row],[Unități vândute (en gross)]]+tblVânzări[[#This Row],[Unități vândute (vânzare cu amănuntul)]]","v":{"v":1569,"d":"1,569"}},{"$f":"tblVânzări[[#This Row],[Unități vândute (vânzare cu amănuntul)]]*tblVânzări[[#This Row],[Preț de comercializare cu amănuntul pe unitate]]+tblVânzări[[#This Row],[Unități vândute (en gross)]]*tblVânzări[[#This Row],[Preț en gross pe unitate*]]","v":{"v":89727,"d":"89,727 lei"}}]
[null,5,{"$f":"IFERROR(IF(tblVânzări[[#This Row],[ID produs]]<>\"\",VLOOKUP(tblVânzări[ID produs],tblProduse[[ID produs]:[Nume]],2,FALSE),\"\"),\"ID produs necunoscut\")","v":"Pantaloni scurți"},"2012-04-30",82,{"v":71,"d":"71 lei"},716,{"v":1249,"d":"1,249"},{"$f":"tblVânzări[[#This Row],[Unități vândute (en gross)]]+tblVânzări[[#This Row],[Unități vândute (vânzare cu amănuntul)]]","v":{"v":1965,"d":"1,965"}},{"$f":"tblVânzări[[#This Row],[Unități vândute (vânzare cu amănuntul)]]*tblVânzări[[#This Row],[Preț de comercializare cu amănuntul pe unitate]]+tblVânzări[[#This Row],[Unități vândute (en gross)]]*tblVânzări[[#This Row],[Preț en gross pe unitate*]]","v":{"v":147391,"d":"147,391 lei"}}]
[null,1,{"$f":"IFERROR(IF(tblVânzări[[#This Row],[ID produs]]<>\"\",VLOOKUP(tblVânzări[ID produs],tblProduse[[ID produs]:[Nume]],2,FALSE),\"\"),\"ID produs necunoscut\")","v":"Bluze"},"2012-05-14",34,{"v":31,"d":"31 lei"},850,{"v":1548,"d":"1,548"},{"$f":"tblVânzări[[#This Row],[Unități vândute (en gross)]]+tblVânzări[[#This Row],[Unități vândute (vânzare cu amănuntul)]]","v":{"v":2398,"d":"2,398"}},{"$f":"tblVânzări[[#This Row],[Unități vândute (vânzare cu amănuntul)]]*tblVânzări[[#This Row],[Preț de comercializare cu amănuntul pe unitate]]+tblVânzări[[#This Row],[Unități vândute (en gross)]]*tblVânzări[[#This Row],[Preț en gross pe unitate*]]","v":{"v":76888,"d":"76,888 lei"}}]
[null,2,{"$f":"IFERROR(IF(tblVânzări[[#This Row],[ID produs]]<>\"\",VLOOKUP(tblVânzări[ID produs],tblProduse[[ID produs]:[Nume]],2,FALSE),\"\"),\"ID produs necunoscut\")","v":"Sandale"},"2012-05-14",64,{"v":40,"d":"40 lei"},876,{"v":1663,"d":"1,663"},{"$f":"tblVânzări[[#This Row],[Unități vândute (en gross)]]+tblVânzări[[#This Row],[Unități vândute (vânzare cu amănuntul)]]","v":{"v":2539,"d":"2,539"}},{"$f":"tblVânzări[[#This Row],[Unități vândute (vânzare cu amănuntul)]]*tblVânzări[[#This Row],[Preț de comercializare cu amănuntul pe unitate]]+tblVânzări[[#This Row],[Unități vândute (en gross)]]*tblVânzări[[#This Row],[Preț en gross pe unitate*]]","v":{"v":122584,"d":"122,584 lei"}}]
[null,3,{"$f":"IFERROR(IF(tblVânzări[[#This Row],[ID produs]]<>\"\",VLOOKUP(tblVânzări[ID produs],tblProduse[[ID produs]:[Nume]],2,FALSE),\"\"),\"ID produs necunoscut\")","v":"Umbrele"},"2012-05-14",33,{"v":30,"d":"30 lei"},881,{"v":1149,"d":"1,149"},{"$f":"tblVânzări[[#This Row],[Unități vândute (en gross)]]+tblVânzări[[#This Row],[Unități vândute (vânzare cu amănuntul)]]","v":{"v":2030,"d":"2,030"}},{"$f":"tblVânzări[[#This Row],[Unități vândute (vânzare cu amănuntul)]]*tblVânzări[[#This Row],[Preț de comercializare cu amănuntul pe unitate]]+tblVânzări[[#This Row],[Unități vândute (en gross)]]*tblVânzări[[#This Row],[Preț en gross pe unitate*]]","v":{"v":63543,"d":"63,543 lei"}}]
[null,4,{"$f":"IFERROR(IF(tblVânzări[[#This Row],[ID produs]]<>\"\",VLOOKUP(tblVânzări[ID produs],tblProduse[[ID produs]:[Nume]],2,FALSE),\"\"),\"ID produs necunoscut\")","v":"Sticle de apă"},"2012-05-14",29,{"v":27,"d":"27 lei"},802,{"v":1548,"d":"1,548"},{"$f":"tblVânzări[[#This Row],[Unități vândute (en gross)]]+tblVânzări[[#This Row],[Unități vândute (vânzare cu amănuntul)]]","v":{"v":2350,"d":"2,350"}},{"$f":"tblVânzări[[#This Row],[Unități vândute (vânzare cu amănuntul)]]*tblVânzări[[#This Row],[Preț de comercializare cu amănuntul pe unitate]]+tblVânzări[[#This Row],[Unități vândute (en gross)]]*tblVânzări[[#This Row],[Preț en gross pe unitate*]]","v":{"v":65054,"d":"65,054 lei"}}]
[null,5,{"$f":"IFERROR(IF(tblVânzări[[#This Row],[ID produs]]<>\"\",VLOOKUP(tblVânzări[ID produs],tblProduse[[ID produs]:[Nume]],2,FALSE),\"\"),\"ID produs necunoscut\")","v":"Pantaloni scurți"},"2013-12-11",24,{"v":15,"d":"15 lei"},824,{"v":1994,"d":"1,994"},{"$f":"tblVânzări[[#This Row],[Unități vândute (en gross)]]+tblVânzări[[#This Row],[Unități vândute (vânzare cu amănuntul)]]","v":{"v":2818,"d":"2,818"}},{"$f":"tblVânzări[[#This Row],[Unități vândute (vânzare cu amănuntul)]]*tblVânzări[[#This Row],[Preț de comercializare cu amănuntul pe unitate]]+tblVânzări[[#This Row],[Unități vândute (en gross)]]*tblVânzări[[#This Row],[Preț en gross pe unitate*]]","v":{"v":49686,"d":"49,686 lei"}}]

{"sheet":"Listă de prețuri","index":2,"n_rows":18,"n_cols":6,"rows_kept":18,"merged":[[15,1,15,5]]}
[null,"Lista de prețuri a produselor"]
[]
[null,"Adventure Works"]
[null,"Str. Arțarului 234"]
[null,"Brașov, BV 77503"]
[null,"Telefon: (425) 555-0150"]
[null,"FAX: (425) 555-0152"]
[null,"www.adventure-works.com",{"$nulls":3},"Ultima actualizare: 15.08.2013"]
[]
[null,"ID produs","Nume","Descriere","Preț de comercializare cu amănuntul pe unitate","Preț en gross pe unitate*"]
[null,1,"Bluze","Rămâneți „cool” toată vara, în cămășile noastre de bumbac 100% care nu se lărgesc.",{"v":22,"d":"22 lei"},{"v":15,"d":"15.00 lei"}]
[null,2,"Sandale","Purtați sandale cu talpă de cauciuc foarte rezistentă și plimbați-vă cu ușurință pe cel mai fierbinte nisip.",{"v":10,"d":"10 lei"},{"v":6,"d":"6.00 lei"}]
[null,3,"Umbrele","Apărați-vă de soare sub umbrela noastră foarte mare de plajă care blochează 96% din razele UV dăunătoare.",{"v":30,"d":"30 lei"},{"v":20,"d":"20.00 lei"}]
[null,4,"Sticle de apă","Hidratați-vă cu apă la temperatura perfectă din sticla noastră izolantă.",{"v":7,"d":"7 lei"},{"v":5,"d":"5.00 lei"}]
[null,5,"Pantaloni scurți","Mergeți direct din apă în mașină în pantalonii noștri de nailon cu uscare ultrarapidă.",{"v":15,"d":"15 lei"},{"v":8,"d":"8.00 lei"}]
[]
[{"$nulls":5},"Apelați-ne pentru articolele nelistate."]
[{"$nulls":5},"*Prețurile en gross se aplică pentru cantități de 12 sau mai multe unități."]

{"sheet":"Punct pivot preț","index":3,"n_rows":10,"n_cols":4,"rows_kept":10,"hidden":true,"merged":[[1,1,1,3]]}
[null,"Raport PivotTable cu punctele de preț"]
[null,"Această foaie ar trebui să rămână ascunsă. Orice modificare efectuată la raportul PivotTable de mai jos poate avea ca rezultat date incorecte în Raportul de vânzări ale produselor. "]
[null,"Produs selectat:",{"$f":"IF(LEN(B5),B5,\"Fără\")","v":"Sandale"}]
[null,"Nume produs","Preț de comercializare cu amănuntul pe unitate","Suma vânzărilor totale (#)"]
[null,"Sandale",{"v":38,"d":"38 lei"},2464]
[null,null,{"v":50,"d":"50 lei"},1777]
[null,null,{"v":64,"d":"64 lei"},2539]
[null,null,{"v":70,"d":"70 lei"},1787]
[null,null,{"v":83,"d":"83 lei"},1758]
[null,null,{"v":91,"d":"91 lei"},2715]

{"sheet":"Tendință pivot prețuri","index":4,"n_rows":9,"n_cols":3,"rows_kept":9,"hidden":true,"merged":[[1,1,1,3]]}
[null,"Raport PivotTable cu tendințele prețurilor"]
[null,"Această foaie ar trebui să rămână ascunsă. Orice modificare efectuată la raportul PivotTable de mai jos poate avea ca rezultat date incorecte în Raportul de vânzări ale produselor. "]
[null,"Suma vânzărilor totale (#)","Nume produs"]
[null,"Dată preț","Sandale"]
[null,"ian",1787]
[null,"feb",4222]
[null,"mar",1777]
[null,"apr",2715]
[null,"mai",2539]